[Event "2nd Irena Warakomska Memorial-A"]
[Site "Suwalki"]
[Date "2018.08.07"]
[Round "8"]
[White "Wacior, Maciej"]
[Black "Lewtak, Dominik"]
[Result "1-0"]
[ECO "A40"]
[WhiteElo "2081"]
[BlackElo "2164"]
[Annotator "NA"]
[PlyCount "63"]
[EventDate "2018.08.01"]
[EventType "swiss"]
[EventCountry "POL"]
[SourceTitle "playchess.com"]
[Source "ChessBase"]
[SourceQuality "1"]
[TimeControl "40/5400+30:1800+30"]

1. d4 {[%emt 0:00:00]} g6 {[%emt 0:00:00]} 2. Bf4 {[%emt 0:00:00]} Bg7 {[%emt 0:00:00]} 3. e3 {[%emt 0:00:00]} d6 {[%emt 0:00:00]} 4. Nf3 {[%emt 0:01:32]} Nd7 {[%emt 0:00:17]} 5. c3 {[%emt 0:01:07]} e5 {[%emt 0:00:20]} 6. Bg3 {[%emt 0:00:16]} Qe7 {[%emt 0:00:35]} 7. a4 {[%emt 0:02:19]} a5 {[%emt 0:04:46]} 8. Na3 {[%emt 0:01:53]} Nh6 {[%emt 0:05:56]} 9. h3 {[%emt 0:02:19]} O-O {[%emt 0:01:37]} 10. Be2 {[%emt 0:01:45]} Nf5 {[%emt 0:05:01]} 11. Bh2 {[%emt 0:00:06]} Nb6 {[%emt 0:01:40]} 12. O-O {[%emt 0:17:18]} Bd7 {[%emt 0:05:27]} 13. Nc4 {[%emt 0:03:07]} e4 {[%emt 0:05:55]} 14. Nxb6 {[%emt 0:03:30]} cxb6 {[%emt 0:05:43]} 15. Nd2 {[%emt 0:00:06]} d5 {[%emt 0:01:01]} 16. Qb3 {[%emt 0:01:23]} Bh6 {[%emt 0:02:10]} 17. Kh1 {[%emt 0:04:09]} Qe6 {[%emt 0:01:01]} 18. c4 {[%emt 0:00:53]} Nxd4 {[%emt 0:00:28]} 19. exd4 {[%emt 0:01:11]} Bxd2 {[%emt 0:00:08]} 20. cxd5 {[%emt 0:00:02]} Qf6 {[%emt 0:01:26]} 21. Be5 {[%emt 0:04:46]} Qh4 {[%emt 0:00:09]} 22. Qxb6 {[%emt 0:00:26]} Bf4 {[%emt 0:09:14]} 23. Ra3 {[%emt 0:19:54]} Bf5 {[%emt 0:01:37]} 24. g4 {[%emt 0:04:29]} e3 {[%emt 0:05:01]} 25. Bxf4 {[%emt 0:00:07]} Qxh3+ {[%emt 0:00:06]} 26. Kg1 {[%emt 0:00:03]} Ra6 {[%emt 0:04:13]} 27. Qxb7 {[%emt 0:01:52]} Be4 {[%emt 0:00:52]} 28. f3 {[%emt 0:00:07]} g5 {[%emt 0:00:20]} 29. Bh2 {[%emt 0:05:16]} Rf6 {[%emt 0:01:21]} 30. Rxe3 {[%emt 0:01:02]} Bg6 {[%emt 0:02:06]} 31. Qc7 {[%emt 0:00:22]} h5 {[%emt 0:02:15]} 32. Qg3 {[%emt 0:00:29]} 1-0

[Event "2nd Irena Warakomska Memorial-A"]
[Site "Suwalki"]
[Date "2018.08.07"]
[Round "8"]
[White "Lisowski, Krzysztof"]
[Black "Sliwerski, Radoslaw"]
[Result "1/2-1/2"]
[ECO "B51"]
[WhiteElo "2072"]
[BlackElo "1990"]
[Annotator "NA"]
[PlyCount "119"]
[EventDate "2018.08.01"]
[EventType "swiss"]
[EventCountry "POL"]
[SourceTitle "playchess.com"]
[Source "ChessBase"]
[SourceQuality "1"]
[TimeControl "40/5400+30:1800+30"]

1. e4 {[%emt 0:00:00]} c5 {[%emt 0:00:00]} 2. Nf3 {[%emt 0:00:00]} d6 {[%emt 0:00:00]} 3. Bb5+ {[%emt 0:00:03]} Nd7 {[%emt 0:00:10]} 4. Ba4 {[%emt 0:00:11]} a6 {[%emt 0:10:45]} 5. c4 {[%emt 0:00:14]} Ngf6 {[%emt 0:03:57]} 6. O-O {[%emt 0:00:07]} g6 {[%emt 0:01:15]} 7. Nc3 {[%emt 0:00:24]} Bg7 {[%emt 0:01:06]} 8. d3 {[%emt 0:01:29]} O-O {[%emt 0:01:39]} 9. h3 {[%emt 0:00:11]} h6 {[%emt 0:06:11]} 10. Be3 {[%emt 0:00:15]} e5 {[%emt 0:00:24]} 11. Qd2 {[%emt 0:05:15]} Kh7 {[%emt 0:00:10]} 12. Rab1 {[%emt 0:01:54]} Nb6 {[%emt 0:11:15]} 13. Bc2 {[%emt 0:06:17]} a5 {[%emt 0:06:31]} 14. b3 {[%emt 0:08:26]} Nh5 {[%emt 0:05:21]} 15. Nh2 {[%emt 0:17:53]} Nf4 {[%emt 0:03:45]} 16. Ne2 {[%emt 0:01:32]} f5 {[%emt 0:09:36]} 17. f3 {[%emt 0:09:48]} Nxe2+ {[%emt 0:02:47]} 18. Qxe2 {[%emt 0:00:05]} f4 {[%emt 0:00:04]} 19. Bf2 {[%emt 0:00:55]} h5 {[%emt 0:00:16]} 20. a3 {[%emt 0:02:31]} Nd7 {[%emt 0:02:50]} 21. b4 {[%emt 0:00:40]} axb4 {[%emt 0:00:06]} 22. axb4 {[%emt 0:00:04]} b6 {[%emt 0:00:20]} 23. Ra1 {[%emt 0:04:32]} Rxa1 {[%emt 0:08:17]} 24. Rxa1 {[%emt 0:00:04]} Qc7 25. Bd1 {[%emt 0:09:06]} Bb7 {[%emt 0:02:12]} 26. Qb2 {[%emt 0:02:09]} Ra8 {[%emt 0:01:21]} 27. Rxa8 {[%emt 0:04:10]} Bxa8 {[%emt 0:00:01]} 28. Qa3 {[%emt 0:00:16]} Bc6 {[%emt 0:02:01]} 29. Nf1 {[%emt 0:01:25]} Bf6 {[%emt 0:01:15]} 30. Nd2 {[%emt 0:03:09]} Qb7 {[%emt 0:02:51]} 31. Nb1 Qa8 32. Qxa8 {[%emt 0:10:19]} Bxa8 {[%emt 0:00:43]} 33. Ba4 {[%emt 0:02:12]} Nb8 {[%emt 0:01:05]} 34. Nc3 {[%emt 0:01:01]} Bc6 {[%emt 0:02:54]} 35. Bb3 {[%emt 0:03:33]} Be7 {[%emt 0:04:02]} 36. Kf1 {[%emt 0:02:14]} g5 {[%emt 0:01:53]} 37. Ke2 {[%emt 0:00:35]} Kg6 {[%emt 0:00:20]} 38. Kd1 {[%emt 0:01:32]} Bd7 {[%emt 0:01:10]} 39. Nd5 {[%emt 0:00:49]} Bd8 {[%emt 0:00:08]} 40. Kd2 g4 {[%emt 0:00:00]} 41. hxg4 {[%emt 0:05:05]} hxg4 {[%emt 0:04:42]} 42. fxg4 Kg5 {[%emt 0:05:59]} 43. Bd1 {[%emt 0:14:39]} Bxg4 {[%emt 0:00:22]} 44. Ba4 Bd7 {[%emt 0:01:31]} 45. Bd1 {[%emt 0:04:52]} Be6 46. Kc3 {[%emt 0:03:09]} Nc6 {[%emt 0:06:59]} 47. b5 {[%emt 0:01:17]} Ne7 {[%emt 0:00:29]} 48. Nxe7 {[%emt 0:01:06]} Bxe7 {[%emt 0:00:01]} 49. Kd2 {[%emt 0:01:54]} Bg4 {[%emt 0:00:13]} 50. Bf3 {[%emt 0:01:57]} Kh5 {[%emt 0:03:56]} 51. Ke2 {[%emt 0:00:45]} Bh4 {[%emt 0:00:32]} 52. Bg1 {[%emt 0:02:00]} Bg3 53. Kf1 {[%emt 0:03:12]} Kh4 {[%emt 0:04:16]} 54. Ke2 {[%emt 0:00:13]} Bxf3+ {[%emt 0:01:02]} 55. Kxf3 {[%emt 0:00:50]} Kh5 {[%emt 0:01:25]} 56. Be3 Be1 {[%emt 0:04:09]} 57. Bc1 {[%emt 0:00:55]} Bc3 {[%emt 0:00:46]} 58. g3 {[%emt 0:00:42]} fxg3 {[%emt 0:00:44]} 59. Kxg3 {[%emt 0:00:08]} Be1+ {[%emt 0:00:31]} 60. Kh3 1/2-1/2

[Event "2nd Irena Warakomska Memorial-A"]
[Site "Suwalki"]
[Date "2018.08.07"]
[Round "8"]
[White "Maj, Pawel"]
[Black "Jaroch, Karol"]
[Result "1/2-1/2"]
[ECO "E08"]
[WhiteElo "2071"]
[BlackElo "2222"]
[Annotator "NA"]
[PlyCount "61"]
[EventDate "2018.08.01"]
[EventType "swiss"]
[EventCountry "POL"]
[SourceTitle "playchess.com"]
[Source "ChessBase"]
[SourceQuality "1"]
[TimeControl "40/5400+30:1800+30"]

1. c4 {[%emt 0:00:00]} e6 {[%emt 0:00:01]} 2. g3 {[%emt 0:00:00]} Nf6 {[%emt 0:00:06]} 3. Bg2 {[%emt 0:00:00]} Be7 {[%emt 0:02:02]} 4. Nf3 {[%emt 0:00:00]} O-O {[%emt 0:00:17]} 5. O-O {[%emt 0:00:03]} d5 {[%emt 0:01:24]} 6. d4 {[%emt 0:00:58]} Nbd7 {[%emt 0:00:45]} 7. Qc2 {[%emt 0:01:55]} c5 {[%emt 0:02:55]} 8. dxc5 {[%emt 0:07:39]} Nxc5 {[%emt 0:05:02]} 9. Rd1 {[%emt 0:01:18]} b6 {[%emt 0:11:34]} 10. Nc3 {[%emt 0:04:46]} Bb7 {[%emt 0:00:20]} 11. Bg5 {[%emt 0:21:38]} Rc8 {[%emt 0:07:41]} 12. cxd5 {[%emt 0:06:50]} Nxd5 {[%emt 0:01:40]} 13. Bxe7 {[%emt 0:08:44]} Qxe7 {[%emt 0:04:25]} 14. Rd4 {[%emt 0:02:31]} Nxc3 {[%emt 0:05:30]} 15. Qxc3 {[%emt 0:01:38]} e5 {[%emt 0:03:51]} 16. Qe3 {[%emt 0:01:05]} Rce8 {[%emt 0:07:49]} 17. Rd2 {[%emt 0:02:40]} f5 {[%emt 0:00:21]} 18. Rad1 {[%emt 0:04:05]} f4 {[%emt 0:07:50]} 19. gxf4 {[%emt 0:01:50]} Rxf4 {[%emt 0:00:27]} 20. a3 {[%emt 0:01:36]} Re4 {[%emt 0:09:37]} 21. Qg5 {[%emt 0:08:26]} Qxg5 {[%emt 0:00:28]} 22. Nxg5 {[%emt 0:00:04]} Rg4 {[%emt 0:00:06]} 23. Nf3 {[%emt 0:00:06]} Rxg2+ {[%emt 0:06:48]} 24. Kxg2 {[%emt 0:00:05]} e4 {[%emt 0:00:04]} 25. b4 {[%emt 0:00:27]} exf3+ {[%emt 0:09:25]} 26. exf3 {[%emt 0:00:05]} Ne6 {[%emt 0:00:14]} 27. Rd7 {[%emt 0:00:15]} Bc6 {[%emt 0:00:04]} 28. Rxa7 {[%emt 0:00:52]} Rf8 {[%emt 0:00:26]} 29. Rd6 {[%emt 0:01:37]} Bxf3+ {[%emt 0:00:07]} 30. Kf1 {[%emt 0:08:17]} Nf4 {[%emt 0:05:07]} 31. Rdd7 {[%emt 0:01:35]} 1/2-1/2

[Event "2nd Irena Warakomska Memorial-A"]
[Site "Suwalki"]
[Date "2018.08.07"]
[Round "8"]
[White "Fiedorek, Michal"]
[Black "Paszewski, Mateusz"]
[Result "1/2-1/2"]
[ECO "B16"]
[WhiteElo "1970"]
[BlackElo "2274"]
[Annotator "NA"]
[PlyCount "90"]
[EventDate "2018.08.01"]
[EventType "swiss"]
[EventCountry "POL"]
[SourceTitle "playchess.com"]
[Source "ChessBase"]
[SourceQuality "1"]
[TimeControl "40/5400+30:1800+30"]

1. e4 {[%emt 0:00:00]} c6 {[%emt 0:00:00]} 2. d4 {[%emt 0:00:00]} d5 {[%emt 0:00:00]} 3. Nc3 {[%emt 0:00:00]} dxe4 {[%emt 0:00:00]} 4. Nxe4 {[%emt 0:00:04]} Nf6 {[%emt 0:00:00]} 5. Nxf6+ {[%emt 0:01:01]} gxf6 {[%emt 0:00:34]} 6. c3 {[%emt 0:06:17]} h5 {[%emt 0:00:13]} 7. Be2 {[%emt 0:07:15]} h4 {[%emt 0:00:48]} 8. h3 {[%emt 0:00:17]} Bf5 {[%emt 0:07:11]} 9. Bf4 {[%emt 0:08:35]} Nd7 {[%emt 0:02:39]} 10. Nf3 {[%emt 0:07:13]} e6 {[%emt 0:04:06]} 11. Qb3 {[%emt 0:11:25]} Qb6 12. Nd2 {[%emt 0:05:49]} Bh6 {[%emt 0:29:34]} 13. Bxh6 {[%emt 0:04:37]} Qxb3 {[%emt 0:01:55]} 14. axb3 {[%emt 0:00:57]} Rxh6 {[%emt 0:00:08]} 15. Nc4 {[%emt 0:00:57]} Ke7 {[%emt 0:01:04]} 16. Bf3 {[%emt 0:04:51]} a6 {[%emt 0:01:42]} 17. b4 {[%emt 0:07:29]} Rb8 {[%emt 0:04:52]} 18. O-O-O {[%emt 0:07:17]} Kd8 {[%emt 0:06:12]} 19. b3 {[%emt 0:05:10]} Kc7 {[%emt 0:04:07]} 20. Kb2 {[%emt 0:01:38]} Rg8 {[%emt 0:06:26]} 21. Ne3 {[%emt 0:03:06]} Bg6 {[%emt 0:03:08]} 22. g4 {[%emt 0:02:04]} hxg3 {[%emt 0:01:49]} 23. fxg3 {[%emt 0:00:09]} f5 {[%emt 0:00:21]} 24. g4 fxg4 {[%emt 0:11:34]} 25. hxg4 {[%emt 0:02:36]} Rxh1 {[%emt 0:00:09]} 26. Rxh1 {[%emt 0:00:05]} e5 {[%emt 0:00:08]} 27. Re1 {[%emt 0:04:33]} Rh8 28. Rh1 {[%emt 0:02:31]} Re8 {[%emt 0:03:58]} 29. Re1 {[%emt 0:00:08]} Rh8 {[%emt 0:01:56]} 30. Rh1 {[%emt 0:00:06]} Re8 {[%emt 0:02:24]} 31. Re1 {[%emt 0:00:08]} Rd8 {[%emt 0:05:08]} 32. Nc4 {[%emt 0:05:52]} exd4 {[%emt 0:00:32]} 33. cxd4 {[%emt 0:00:05]} Rh8 {[%emt 0:00:19]} 34. Re7 {[%emt 0:01:16]} Rh2+ {[%emt 0:00:57]} 35. Kc1 {[%emt 0:00:47]} Kd8 {[%emt 0:00:22]} 36. Re2 {[%emt 0:00:51]} Rxe2 {[%emt 0:02:12]} 37. Bxe2 {[%emt 0:00:05]} Nf6 {[%emt 0:00:04]} 38. Bf3 {[%emt 0:01:11]} Kc7 {[%emt 0:01:04]} 39. Kd2 {[%emt 0:01:07]} Nh7 {[%emt 0:00:52]} 40. Bd1 {[%emt 0:00:00]} Ng5 {[%emt 0:00:00]} 41. Ke3 {[%emt 0:02:46]} f6 {[%emt 0:03:18]} 42. Kf4 {[%emt 0:05:22]} Bh7 {[%emt 0:17:35]} 43. Ke3 {[%emt 0:07:18]} Bg6 {[%emt 0:01:52]} 44. Kf4 {[%emt 0:00:15]} Bh7 {[%emt 0:00:58]} 45. Ke3 {[%emt 0:00:18]} Bg6 {[%emt 0:07:32] Ke4} 1/2-1/2

[Event "2nd Irena Warakomska Memorial-A"]
[Site "Suwalki"]
[Date "2018.08.08"]
[Round "9"]
[White "Cukrowski, Filip"]
[Black "Sliwicki, Damian"]
[Result "1/2-1/2"]
[ECO "C84"]
[WhiteElo "2404"]
[BlackElo "2220"]
[Annotator "RC"]
[PlyCount "132"]
[EventDate "2018.08.01"]
[EventType "swiss"]
[EventCountry "POL"]
[SourceTitle "playchess.com"]
[Source "ChessBase"]
[SourceQuality "1"]
[TimeControl "40/5400+30:1800+30"]

1. e4 e5 {[%emt 0:04:59]} 2. Nf3 {[%emt 0:00:39]} Nc6 {[%emt 0:00:04]} 3. Bb5 {[%emt 0:00:06]} a6 {[%emt 0:00:04]} 4. Ba4 {[%emt 0:00:10]} Nf6 {[%emt 0:00:05]} 5. O-O Be7 6. d3 {[%emt 0:02:25]} b5 {[%emt 0:00:33]} 7. Bb3 d6 {[%emt 0:01:04]} 8. a3 {[%emt 0:01:00]} Na5 {[%emt 0:03:00]} 9. Ba2 {[%emt 0:00:23]} c5 {[%emt 0:00:15]} 10. h3 {[%emt 0:02:06]} O-O {[%emt 0:00:24]} 11. Nc3 {[%emt 0:02:19]} Be6 {[%emt 0:01:10]} 12. Bg5 {[%emt 0:04:05]} h6 {[%emt 0:01:47]} 13. Bxf6 {[%emt 0:00:38]} Bxf6 {[%emt 0:00:09]} 14. b4 {[%emt 0:04:40]} Nc6 {[%emt 0:01:10]} 15. Nd5 {[%emt 0:04:47]} Rc8 {[%emt 0:07:03]} 16. c3 {[%emt 0:00:16]} Bxd5 {[%emt 0:00:51]} 17. Bxd5 {[%emt 0:00:17]} Ne7 {[%emt 0:00:07]} 18. Qb3 {[%emt 0:01:55]} Qd7 {[%emt 0:06:58]} 19. Ra2 {[%emt 0:07:11]} Ng6 {[%emt 0:03:47]} 20. a4 {[%emt 0:02:20]} Nf4 {[%emt 0:06:48]} 21. axb5 {[%emt 0:00:16]} axb5 {[%emt 0:00:10]} 22. bxc5 {[%emt 0:09:41]} dxc5 {[%emt 0:01:51]} 23. Rb1 {[%emt 0:02:22]} Nxd5 {[%emt 0:30:51]} 24. Qxd5 {[%emt 0:05:35]} Qxd5 {[%emt 0:05:44]} 25. exd5 {[%emt 0:00:08]} c4 {[%emt 0:00:40]} 26. dxc4 {[%emt 0:01:07]} bxc4 {[%emt 0:06:05]} 27. Nd2 {[%emt 0:00:50]} Rfd8 {[%emt 0:04:49]} 28. Ra5 {[%emt 0:00:42]} Be7 {[%emt 0:00:05]} 29. Kf1 {[%emt 0:04:39]} f5 {[%emt 0:03:07]} 30. g4 {[%emt 0:07:42]} Bg5 {[%emt 0:00:18]} 31. Rb2 {[%emt 0:02:21]} Bxd2 {[%emt 0:02:16]} 32. Rxd2 {[%emt 0:00:04]} fxg4 {[%emt 0:02:21]} 33. hxg4 {[%emt 0:00:05]} Rd6 {[%emt 0:04:41]} 34. Re2 {[%emt 0:01:19]} Rf8 {[%emt 0:01:15]} 35. Re4 {[%emt 0:01:32]} Rf3 {[%emt 0:01:25]} 36. Rxc4 {[%emt 0:00:26]} Rdf6 {[%emt 0:00:03]} 37. Ra2 {[%emt 0:00:30]} Rd3 {[%emt 0:00:05]} 38. Rc8+ {[%emt 0:02:32]} Kh7 {[%emt 0:00:12]} 39. c4 {[%emt 0:01:48]} e4 {[%emt 0:00:43]} 40. Re2 {[%emt 0:00:00]} Rf4 {[%emt 0:00:00]} 41. Re8 {[%emt 0:04:29]} Rd1+ {[%emt 0:02:20]} 42. Re1 {[%emt 0:00:59]} Rd4 {[%emt 0:07:03]} 43. d6 {[%emt 0:04:32]} Rxd6 {[%emt 0:04:27]} 44. R8xe4 {[%emt 0:00:14]} Rd4 {[%emt 0:01:19]} 45. Rxd4 {[%emt 0:00:48]} Rxd4 {[%emt 0:00:03]} 46. Rc1 {[%emt 0:04:11]} Rxg4 {[%emt 0:00:26]} 47. Ke2 {[%emt 0:01:59]} Rd4 {[%emt 0:03:16]} 48. Ke3 {[%emt 0:01:02]} Rd8 {[%emt 0:00:06]} 49. Ke4 {[%emt 0:01:14]} Kg6 {[%emt 0:03:29]} 50. Ke5 {[%emt 0:03:24]} Kf7 {[%emt 0:02:07]} 51. c5 {[%emt 0:00:59]} Ke7 {[%emt 0:00:19]} 52. Ra1 {[%emt 0:03:32]} h5 {[%emt 0:08:18]} 53. c6 {[%emt 0:00:37]} Rd2 {[%emt 0:00:04]} 54. Ra7+ {[%emt 0:00:28]} Kd8 {[%emt 0:00:17]} 55. f4 {[%emt 0:01:11]} Rg2 {[%emt 0:00:21]} 56. Kd6 {[%emt 0:08:49]} Rd2+ {[%emt 0:00:04]} 57. Ke6 {[%emt 0:02:07]} Rg2 {[%emt 0:00:22]} 58. Ra5 {[%emt 0:15:08]} g6 {[%emt 0:00:05]} 59. Ra7 {[%emt 0:00:50]} Rf2 {[%emt 0:00:58]} 60. Kd6 {[%emt 0:05:00]} Rd2+ {[%emt 0:00:04]} 61. Ke5 {[%emt 0:00:22]} Re2+ {[%emt 0:04:21]} 62. Kd5 {[%emt 0:05:26]} Rd2+ {[%emt 0:00:24]} 63. Ke6 {[%emt 0:00:45]} Re2+ {[%emt 0:00:40]} 64. Kf6 {[%emt 0:01:48]} Re4 {[%emt 0:00:38]} 65. Kg5 {[%emt 0:00:05]} Re6 {[%emt 0:00:08]} 66. Rh7 {[%emt 0:00:36]} Rxc6 {[%emt 0:00:13]} 1/2-1/2